Cogmind - Beta 13 @@@ ROGUE MODE // 2024.05.30 @ 22:38:07 Player: Blade Result: Destroyed by L-31 Rogue with Katana Performance ------------- Evolutions (2) 1000 Regions Visited (3) 600 Robots Destroyed (38) 190 Value Destroyed (866) 866 Prototype IDs (0) 0 Alien Tech Used (0) 0 Bonus (17) 17 TOTAL SCORE: 2673 Bonus ------- High Alert Combat Kills 17 Cogmind --------- Core Integrity 0/550 Matter 113/300 Energy 62/100 System Corruption 0% Temperature Cool (9) Movement Treading (160) Location -8/Materials Parts ------- > --- POWER (1) -------- (None) > --- PROPULSION (3) --- Light Treads > --- UTILITY (4) ------ (None) > --- WEAPON (3) ------- (None) > --- INVENTORY (5) ---- Light Treads Advanced Weight Redist. System Small Laser Rocket Launcher Peak State ------------ > --- POWER ------------ Light Nuclear Core > --- PROPULSION ------- Compact Wheel Compact Wheel > --- UTILITY ---------- Small Storage Unit Light Armor Plating > --- WEAPON ----------- Flail Flail > --- INVENTORY -------- Ion Engine Light Treads Light Treads Aluminum Leg Flight Unit Flight Unit Small Laser [Rating: 11] Favorites ----------- Power Light Nuclear Core Engine Ion Engine Power Core Light Nuclear Core Propulsion Compact Wheel Treads Light Treads Leg Aluminum Leg Wheel Compact Wheel Hover Unit Improved Hover Unit Flight Unit Flight Unit Utility Medium Storage Unit Storage Medium Storage Unit Protection Light Armor Plating Weapon Flail Energy Gun Medium Laser Launcher Rocket Launcher Impact Weapon Flail Build | -11 -10 -9 -8 ------- Run | Yrd Mat Mat Mat Slots Evolved 4 | . . 2 2 Power . | . . . . Propulsion 1 | . . 1 . Utility 2 | . . . 2 Weapon 1 | . . 1 . Parts Attached 26 | . 16 6 4 Power 1 | . 1 . . Engine . | . . . . Core 1 | . 1 . . Reactor . | . . . . Propulsion 14 | . 7 3 4 Treads 3 | . . 2 1 Leg 2 | . . . 2 Wheel 7 | . 7 . . Hover 1 | . . 1 . Flight 1 | . . . 1 Utility 5 | . 5 . . Device . | . . . . Storage 2 | . 2 . . Processor . | . . . . Hackware . | . . . . Protection 3 | . 3 . . Artifact . | . . . . Weapon 6 | . 3 3 . Energy Gun . | . . . . Energy Cannon . | . . . . Ballistic Gun . | . . . . Ballistic Cannon . | . . . . Launcher 3 | . . 3 . Special Weapon . | . . . . Impact Weapon 3 | . 3 . . Slashing Weapon . | . . . . Piercing Weapon . | . . . . Special Melee Weapon . | . . . . Unidentified Prototypes . | . . . . Corrupted Parts 2 | . 2 . . System Corruption 18 | . 18 . . Parts Lost 18 | . 4 6 8 Power 2 | . 2 . . Propulsion 9 | . 1 2 6 Utility 2 | . 1 . 1 Weapon 5 | . . 4 1 Highest Loss Streak 7 | . 2 3 7 To Critical Strikes . | . . . . Average Slot Usage (%) 65 | . 84 50 37 Engine 1 | . 3 . . Core 2 | . 5 . . Treads 6 | . . 10 14 Leg 3 | . 7 . . Wheel 14 | . 17 14 7 Storage 12 | . 14 11 9 Protection 3 | . 7 . . Energy Gun 1 | . 2 . . Launcher 4 | . . 8 5 Impact Weapon 14 | . 25 5 . Naked Turns . | . . . . Heaviest Build 22 | 14 22 16 14 Greatest Support 40 | 20 32 40 40 Greatest Overweight (x) 4 | . 1 4 3 Average Overweight (x) . | . . . . Largest Inventory Capacity 10 | 8 10 10 10 Average Capacity 9 | 8 8 10 10 Most Carried 8 | 6 8 8 8 Average Carried 6 | 6 7 6 7 Final Capacity 10 | 8 10 10 5 Final Carried 6 | 6 5 6 4 Class Distribution -------------------- 100% | Mutant Dominant Class ---------------- Mutant | -10/Materials Mutant | -9/Materials Mutant | -8/Materials Resources | -11 -10 -9 -8 ----------- Run | Yrd Mat Mat Mat Matter Collected 584 | 185 191 100 108 Remotely . | . . . . Salvage Created 847 | . 489 358 . Parts 34 | . 8 26 . Haulers Intercepted 2 | . 1 1 . Recyclers Shooed 2 | . . 2 . Parts Field Recycled . | . . . . Retrieved Matter . | . . . . Parts Self-Destructed . | . . . . Prevented . | . . . . Kills | -11 -10 -9 -8 ------- Run | Yrd Mat Mat Mat Combat Hostiles Destroyed 24 | . 10 14 . Melee 3 | . 3 . . AOE 12 | . . 12 . Classes Destroyed 11 | . 7 4 . Worker 3 | . 1 2 . Builder 3 | . . 3 . Tunneler 2 | . 1 1 . Hauler 2 | . 1 1 . Recycler 1 | . 1 . . Operator 1 | . . 1 . Watcher 2 | . 1 1 . Swarmer 6 | . 3 3 . Grunt 15 | . 7 8 . Duelist 1 | . . 1 . Sentry 2 | . . 2 . Best Kill Streak 8 | . 4 8 . Combat Bots Only 6 | . 3 6 . Max Kills in Single Turn 2 | . 1 2 . Gunslinging . | . . . . Exploded 2 | . . 2 . Melee 1 | . 1 . . Uniques/NPCs Destroyed . | . . . . Combat | -11 -10 -9 -8 -------- Run | Yrd Mat Mat Mat Hostile Shots Fired 280 | . 74 95 111 Missed 84 | . 16 34 34 Damage Taken 2647 | . 626 957 1064 Core 1089 | . 131 384 574 Absorbed by Shields . | . . . . Core Remaining (%) 50 | 100 47 4 . Volleys Fired 33 | . . 33 . Largest 1 | . . 1 . Hottest 33 | . . 33 . Shots Fired 33 | . . 33 . Gun . | . . . . Cannon . | . . . . Launcher 33 | . . 33 . Special . | . . . . Kinetic . | . . . . Thermal . | . . . . Explosive 33 | . . 33 . Electromagnetic . | . . . . Robot Hit Streak 6 | . . 6 . Robot Miss Streak 5 | . . 5 . Penetration Max . | . . . . Secondary Targets . | . . . . Shots Hit Robots 61 | . 31 30 . Core Hits 35 | . 3 32 . Critical Kills . | . . . . Critical Parts Destroyed 5 | . 3 2 . Critical Strikes 5 | . 3 2 . Smash 5 | . 3 2 . Melee Attacks 77 | . 60 17 . Impact 77 | . 60 17 . Slashing . | . . . . Piercing . | . . . . Sneak Attacks 10 | . 8 2 . Combat Hostiles . | . . . . Follow-up Attacks 6 | . 6 . . Damage Inflicted 3543 | . 1351 2192 . Guns . | . . . . Cannons . | . . . . Explosions 1613 | . . 1613 . Melee 1929 | . 1351 578 . Ramming 1 | . . 1 . Kinetic . | . . . . Thermal . | . . . . Explosive 1613 | . . 1613 . Electromagnetic . | . . . . Impact 1929 | . 1351 578 . Slashing . | . . . . Piercing . | . . . . Highest Corruption 20 | . 20 2 . Average Corruption 4 | . 4 2 . Corruption Purged . | . . . . Corruption Blocked . | . . . . Effects 16 | . 16 . . Message Errors 3 | . 3 . . Matter Fused 3 | . 3 . . Heat Flow Errors 2 | . 2 . . Energy Discharges 2 | . 2 . . Parts Rejected 1 | . 1 . . Data Loss (major) 2 | . 2 . . Alerts 1 | . 1 . . Misdirections 2 | . 2 . . Overload Shots . | . . . . Overflow Damage 656 | . 368 288 . Projectiles . | . . . . Explosions 55 | . . 55 . Melee 601 | . 368 233 . Knockbacks 7 | . 4 3 . Impact 7 | . 4 3 . Kinetic . | . . . . Secondary . | . . . . Self-Inflicted Damage 194 | . . 194 . Shots 4 | . . 4 . Rammed 1 | . . 1 . Targets Rammed 1 | . . 1 . Kicked . | . . . . Crushed . | . . . . Highest Temperature 265 | . 265 15 5 Average Temperature 99 | . 120 6 5 Received Heat Transfer 1014 | . 180 411 423 Siege Activations . | . . . . Robots Corrupted . | . . . . Combat Hostiles . | . . . . Parts Fried 19 | . 15 4 . Impact Corruptions 26 | . 20 6 . Robots Melted . | . . . . Combat Hostiles . | . . . . Parts Melted . | . . . . Heat Transferred . | . . . . Parts Sabotaged . | . . . . Parts Stolen . | . . . . Parts Stripped . | . . . . Power Chain Reactions . | . . . . Alert | -11 -10 -9 -8 ------- Run | Yrd Mat Mat Mat Peak Influence 504 | . 216 504 232 Initial 212 | . . 11 212 Average 176 | . 92 262 216 Maximum Alert Level 2 | . 1 2 1 Low Security (%) 64 | 100 97 44 . Level 1 23 | . 2 27 100 Level 2 11 | . . 28 . Level 3 . | . . . . Level 4 . | . . . . Level 5 . | . . . . High Security . | . . . . Max Security . | . . . . Squads Dispatched 4 | . 2 1 1 Investigation 1 | . 1 . . Extermination . | . . . . Reinforcement 3 | . 1 1 1 Assault . | . . . . Garrison . | . . . . Intercept . | . . . . Searches Triggered . | . . . . Construction Impeded . | . . . . Haulers Reinforced . | . . . . Active Scanning Responses . | . . . . Cargo Convoy Interrupts . | . . . . Stealth | -11 -10 -9 -8 --------- Run | Yrd Mat Mat Mat Distress Signals 5 | . 3 1 1 Communications Jammed . | . . . . Distress Signals . | . . . . Times Spotted 61 | . 25 23 13 Peak Tracking Total 12 | . 5 5 12 Tactical Retreats 5 | . 3 1 1 Traps | -11 -10 -9 -8 ------- Run | Yrd Mat Mat Mat Traps Triggered 6 | . 5 1 . Indirectly . | . . . . Trap Hack Attempts . | . . . . Triggered . | . . . . Disarmed . | . . . . Reprogrammed . | . . . . Reused . | . . . . Traps Extracted . | . . . . Installed . | . . . . Triggered . | . . . . Machines | -11 -10 -9 -8 ---------- Run | Yrd Mat Mat Mat Machines Disabled 3 | . . 3 . Max in Single Turn 1 | . . 1 . Machines Repaired . | . . . . Machines Dismantled . | . . . . Machines Sabotaged . | . . . . Overloaded Fab Kills . | . . . . Hacking | -11 -10 -9 -8 --------- Run | Yrd Mat Mat Mat Machines Accessed 9 | . 7 2 . Terminals 9 | . 7 2 . Fabricators . | . . . . Repair Stations . | . . . . Recycling Units . | . . . . Scanalyzers . | . . . . Garrison Access . | . . . . Total Hacks 13 | . 11 2 . Successful 8 | . 6 2 . Failed 5 | . 5 . . Catastrophic 1 | . 1 . . Database Lockouts . | . . . . Manual 12 | . 10 2 . Terminals 13 | . 11 2 . Fabricators . | . . . . Repair Stations . | . . . . Recycling Units . | . . . . Scanalyzers . | . . . . Garrison Access . | . . . . Terminal Hacks 1 | . 1 . . Terminal Index 1 | . 1 . . Fabricator Hacks . | . . . . Repair Station Hacks . | . . . . Recycling Unit Hacks . | . . . . Scanalyzer . | . . . . Garrison Access Hacks . | . . . . Unauthorized Hacks 7 | . 5 2 . Terminals 7 | . 5 2 . Botnet 7 | . 5 2 . Fabricators . | . . . . Repair Stations . | . . . . Recycling Units . | . . . . Scanalyzers . | . . . . Garrison Access . | . . . . Data Cores Recovered . | . . . . Used . | . . . . Hacking Detections 3 | . 2 1 . Full Trace Events . | . . . . Feedback Events . | . . . . Feedback Blocked . | . . . . Robot Schematics Acquired . | . . . . Robots Built . | . . . . Authchips . | . . . . Time . | . . . . Total Robot Build Rating . | . . . . Part Schematics Acquired . | . . . . Parts Built . | . . . . Authchips . | . . . . Time . | . . . . Total Part Build Rating . | . . . . Parts Repaired . | . . . . Time . | . . . . Parts Recycled . | . . . . Recycled Matter . | . . . . Retrieved Matter . | . . . . Retrieved Components . | . . . . Parts Scanalyzed . | . . . . Part Schematics Acquired . | . . . . Parts Damaged . | . . . . Bothacking | -11 -10 -9 -8 ------------ Run | Yrd Mat Mat Mat Used RIF Installer . | . . . . Robots Hacked . | . . . . Non-combat . | . . . . Combat . | . . . . Robot Hacks Applied . | . . . . Relay Couplers Released . | . . . . Fabnet Peak Effective % . | . . . . Robots Rewired . | . . . . Allies Hacked . | . . . . Hacks Repelled . | . . . . Allies | -11 -10 -9 -8 -------- Run | Yrd Mat Mat Mat Total Allies . | . . . . Largest Group . | . . . . Highest-Rated Group . | . . . . Highest-Rated Ally . | . . . . Total Orders . | . . . . Ally Attacks . | . . . . Total Damage . | . . . . Kills . | . . . . Allies Corrupted . | . . . . Allies Melted . | . . . . Intel | -11 -10 -9 -8 ------- Run | Yrd Mat Mat Mat Robot Analysis Total . | . . . . Derelict Logs Recovered . | . . . . Drone Launches . | . . . . Drone Recoveries . | . . . . Exploration | -11 -10 -9 -8 ------------- Run | Yrd Mat Mat Mat Turns Passed 1785 | 2 843 747 193 Spaces Moved 1216 | 2 614 458 142 Core 24 | . . 12 12 Treads 261 | . . 207 54 Legs 143 | 2 137 . 4 Wheels 783 | . 477 234 72 Hover 5 | . . 5 . Flight . | . . . . Fastest Speed 90 | 120 90 100 100 Average Speed 119 | 120 107 131 131 Slowest Speed 250 | 120 120 250 200 Overloaded Moves . | . . . . Propulsion Burnouts . | . . . . Robots Hopped . | . . . . Cave-ins Triggered . | . . . . Exploration Rate (%) 36 | 1 82 40 21 Regions Visited 3 Branch Regions . Pre-discovered Areas . | . . . . Known Exits Taken . | . . . . Unknown Exits Taken 3 | 1 1 1 . Scrap Searched . | . . . . Spaces Dug 2 | . 2 . . Terrain Destroyed 211 | . 2 209 . Melee 2 | . 2 . . Projectile . | . . . . AOE 209 | . . 209 . Terrain Rammed . | . . . . Walls Destroyed . | . . . . Machines Disabled . | . . . . Actions | -11 -10 -9 -8 --------- Run | Yrd Mat Mat Mat Total 1408 | 1 714 545 148 Wait 56 | . 26 30 . Move 1213 | 1 613 457 142 Hop . | . . . . Pick Up 7 | . 2 3 2 Fast Attach 17 | . 13 4 . Attach 7 | . 1 2 4 Detach . | . . . . Swap 2 | . 2 . . Drop 5 | . 5 . . Fire 33 | . . 33 . Melee 67 | . 52 15 . Ram . | . . . . Kick . | . . . . Crush 1 | . . 1 . Escape Stasis . | . . . . Rewire . | . . . . Trap . | . . . . Miscellaneous . | . . . . Route ------- -11/Scrapyard -10/Materials (discovered 4 exits: *Mat x3 / [*Min]) -9/Materials -8/Materials History --------- Turn | Location | Event 1 | -11/Scrapyard | Discovered new exit (range 1) 3 | -11/Scrapyard | Entered Materials 306 | -10/Materials | Build established: Mutant 331 | -10/Materials | Discovered new exit (range 9) 431 | -10/Materials | Discovered new exit (range 7) 635 | -10/Materials | Discovered new exit (range 15) 814 | -10/Materials | System corruption reached 10% 826 | -10/Materials | Discovered new exit (range 12) 845 | -10/Materials | Core integrity fell below 50% 846 | -10/Materials | Entered another Materials area 846 | -9/Materials | Evolved 2 slots: Propulsion x1, Weapon x1 1143 | -9/Materials | Lost 3 parts (1n2w) 1187 | -9/Materials | Core integrity fell below 50% 1559 | -9/Materials | Discovered new exit (range 15) 1575 | -9/Materials | Core integrity fell below 20% 1593 | -9/Materials | Entered another Materials area 1593 | -8/Materials | Evolved 2 slots: Utility x2 1770 | -8/Materials | Core integrity fell below 50% 1780 | -8/Materials | Core integrity fell below 20% 1786 | -8/Materials | Destroyed by L-31 Rogue with Katana Last Messages --------------- 01754_ Lgt. Treads destroyed. 01761_ C-30 ARC bursts open, deploying its payload. 01761_ S-10 Pest unfolds itself. 01763_ U-05 Engineer destroyed. 01764_ Slug penetrates Wall. 01767_ Critical hit (Burn: +37). 01770_ Penetrated by Slug. 01772_ Critical hit (Burn: +37). 01773_ Slug penetrates A-02 Transporter. 01778_ C-30 ARC bursts open, deploying its payload. 01778_ L-31 Rogue unfolds itself. 01778_ G-47 Trooper unfolds itself. 01779_ Acquired 108 matter. 01780_ Penetrated by Slug. 01780_ Aluminum Leg destroyed. 01782_ Flight Unit destroyed. 01783_ Carbon-fiber Leg destroyed. 01786_ Med. Storage Unit destroyed. Map ----- +----------------------------------------------------+ | ?????????????????????????????????????# # """ | | ?????????????????????????????????????# + """ | | ????????????????????????????######???# # """ | | ???????????????????????????##!!!!##??# # | | ?????????????????#######???#! !#??# #? | | ???????????????? ???# #??# #? | | ????????????????? #### #### #??###### | | ?????????????????? #???????? | | ???????????????????????# #???????? | | ???????????????????????#= "" #???????? | | ???????????????????????#%|"G ########???????? | | ???????????????????????#=! "" [ #??????????????? | | ???????????????????????# #??????????????? | | ???????????????????????#] ##?????????????? | | ???????????????????????# gg "#?????????????? | | ???????????????????????# w T#?????????????? | | ???????????????????????# "#?????????????? | | ???????????????????????# """ ##?????????????? | | ???????????????????????# """ #??????????????? | | ??????????????#????????# """ #??????????????? | | ??????????????# ??????# """ #??????????????? | | ??????????????# ????# s #??????????????? | | ???????????????? ??# s #??????????????? | | ??????????????? """ # o #??????????????? | | ??????????????? """"+ ####T###??????????????? | | ??????????????? [ """ #l@t#???##????????????????? | | ???????????????? ? # #?????????????????????? | | ???????????????####??#?# gg#?????????????????????? | | ??????????????????????? ?????????????????????? | | ?????????????????????? ????????????????????? | | ????????????????????? T * ???????????????????? | | ????????????????????### ??????????????????? | | ??????????????????????# ####?????????????????? | | ??????????????????????#######????????????????????? | | ?????????????????????????????????????????????????? | | ?????????????????????????????????????????????????? | | ?????????????????????????????????????????????????? | | ?????????????????????????????????????????????????? | | ?????????????????????????????????????????????????? | | ?????????????????????????????????????????????????? | | ?????????????????????????????????????????????????? | | ?????????????????????????????????????????????????? | | ?????????????????????????????????????????????????? | | ?????????????????????????????????????????????????? | | ?????????????????????????????????????????????????? | | ?????????????????????????????????????????????????? | | ?????????????????????????????????????????????????? | | ?????????????????????????????????????????????????? | | ?????????????????????????????????????????????????? | | ?????????????????????????????????????????????????? | +----------------------------------------------------+ Best States ------------- Heat Dissipation 31 Energy Generation 14 Energy Capacity 250 Matter Stores 300 Matter Capacity 300 Sight Range 16 Terrain Scan Density 10 Armor Coverage 150 Evasion (%) 55 Recoil Reduction 2 Item Schematics ----------------- None Robot Schematics ------------------ None Fabricated ------------ Nothing Alien Tech Used ----------------- None Achievements -------------- None Challenges ------------ None Game ------ Seed TachyonLongswordSink Manual? 0 Play Time 00:16:21 Cumulative 66.0 hours Start 2024.05.30 @ 22:22:33 End 2024.05.30 @ 22:38:07 Sessions 1 Manual Loads 0 Difficulty Rogue Special Mode None Game No. 87 Rogue 3 Adventurer 79 Explorer 5 Win Type - Total 2 Types 2/0/0/0/0/0/0/0/0 Lore% 34 Gallery% 49 Achievement% 37 Wizard Run 0 Options --------- Layout 1 ASCII 0 Keyboard 0 Movement Arrows Keybinds 0 Fullscreen 2 Font 24/Smallcaps Map View 50x35 Zoom Use 0% Tactical HUD 1 Map Filters NONE Filters NONE Steam 1 RUN: 25a0a7ec-e925-40f5-b154-ef83f39775cd